bitfinex/quotes_ETHUSD_20251122
["timestamp","ask_amount","ask_price","bid_price","bid_amount"]
[1763805566218,7.12416686,2730.0,2729.9,0.125]
[1763805568140,7.69909748,2730.0,2729.9,0.125]
[1763805568338,11.62125842,2730.0,2729.9,0.125]
[1763805570337,6.57548055,2730.0,2729.9,0.125]
[1763805570538,6.99958055,2730.0,2729.9,0.125]
[1763805570743,6.57548055,2730.0,2729.9,0.125]
[1763805571351,6.07548055,2730.0,2729.9,0.125]
[1763805571520,6.07548055,2730.0,2729.9,0.5841]
[1763805571852,6.57468055,2730.0,2729.9,0.125]
[1763805572749,6.07548055,2730.0,2729.9,0.125]
[1763805572917,6.07548055,2730.0,2729.9,0.5841]
[1763805576063,10.51623749,2730.0,2729.9,0.125]
[1763805576266,11.56786124,2730.0,2729.9,0.125]
[1763805576635,11.56786124,2730.0,2729.9,0.001]
[1763805576959,11.97336524,2730.0,2729.9,0.001]
[1763805577156,11.97336524,2730.0,2729.9,0.125]
[1763805578760,7.05037368,2730.0,2729.9,0.125]
[1763805578939,5.50054993,2730.0,2729.9,0.6082]
[1763805579342,5.50074704,2730.0,2729.9,0.6082]
[1763805579540,5.94574704,2730.0,2729.9,0.125]
[1763805581469,9.94090398,2730.0,2729.9,0.125]
[1763805582168,1.9840901,2730.0,2729.9,1.0876]
[1763805582337,0.59,2730.0,2729.9,1.0876]
[1763805582868,4.10665694,2730.5,2729.9,1.0876]
[1763805583077,0.34028244,2730.4,2730.0,0.4794]
[1763805583374,0.59,2730.5,2730.0,0.4794]
[1763805583544,0.59,2730.5,2730.4,0.681]
[1763805583741,5.01364958,2730.5,2730.4,0.681]
[1763805583982,5.01364958,2730.5,2730.4,1.1604]
[1763805584678,4.10665694,2730.5,2730.4,1.1604]
[1763805584880,5.01364958,2730.5,2730.4,1.1604]
[1763805587564,0.90699264,2730.4,2730.0,0.1978]
[1763805587785,3.51665694,2730.3,2730.1,0.4794]
[1763805588175,4.42364958,2730.3,2730.2,0.4832]
[1763805588572,4.42364958,2730.3,2730.2,0.9626]
[1763805588774,4.42364958,2730.3,2730.2,1.0866]
[1763805590390,4.42364958,2730.3,2730.2,0.6072]
[1763805590391,4.92184958,2730.3,2730.2,0.6072]
[1763805590572,4.92184958,2730.3,2730.2,0.124]
[1763805591085,4.42364958,2730.3,2730.2,0.6072]
[1763805591791,4.42364958,2730.3,2730.2,0.4832]
[1763805591995,4.42364958,2730.3,2730.2,0.6072]
[1763805592357,4.99848459,2730.3,2730.2,0.6072]
[1763805592557,4.42364958,2730.3,2730.2,0.6072]
[1763805593179,5.01364958,2730.3,2730.2,0.6072]
[1763805593379,1.49699264,2730.3,2730.2,1.0866]
[1763805593769,1.49699264,2730.3,2730.2,0.6072]
[1763805596712,1.49699264,2730.3,2730.2,1.0866]
[1763805598816,0.59,2730.3,2730.2,1.0866]
[1763805599118,0.90699264,2730.4,2730.2,1.0866]
[1763805599317,0.90699264,2730.4,2730.2,0.6072]
[1763805599525,0.90699264,2730.4,2730.3,0.9626]
[1763805600180,1.49699264,2730.4,2730.3,0.9626]
[1763805600403,1.49699264,2730.4,2730.3,0.4832]
[1763805600619,1.49699264,2730.4,2730.3,1.0866]
[1763805600835,0.59,2730.4,2730.3,1.0866]
[1763805601385,0.59,2730.4,2730.3,0.9626]
[1763805601607,0.59,2730.5,2730.3,1.0866]
[1763805601813,0.59,2730.6,2730.4,0.4794]
[1763805602239,0.59,2730.6,2730.5,0.6072]
[1763805602704,0.59,2730.6,2730.5,1.0866]
[1763805605042,4.10665694,2730.6,2730.5,0.4832]
[1763805605192,2.40676679,2730.6,2730.5,0.124]
[1763805605620,2.43432945,2730.6,2730.5,0.124]
[1763805605837,5.42522373,2730.6,2730.5,0.5834]
[1763805606038,5.48804958,2730.6,2730.5,0.124]
[1763805606333,5.94194958,2730.6,2730.5,0.124]
[1763805606636,2.42529264,2730.6,2730.5,0.124]
[1763805606787,6.19090396,2730.6,2730.5,0.124]
[1763805607138,0.90699264,2730.5,2730.1,0.001]
[1763805607291,0.90699264,2730.5,2730.2,0.124]
[1763805609312,0.90699264,2730.5,2730.1,0.4749]
[1763805609499,0.4925,2730.5,2730.2,0.124]
[1763805609699,0.4925,2730.5,2730.3,0.2889521]
[1763805609921,0.4925,2730.5,2730.4,0.2889521]
[1763805610426,0.9285,2730.5,2730.4,0.2889521]
[1763805610826,1.5185,2730.5,2730.4,0.2889521]
[1763805611429,1.026,2730.5,2730.4,0.2889521]
[1763805611995,1.026,2730.5,2730.4,0.4129521]
[1763805613102,2.02695724,2730.5,2730.4,0.4129521]
[1763805613728,1.53505724,2730.5,2730.4,0.4129521]
[1763805613896,2.02695724,2730.5,2730.4,0.4129521]
[1763805614498,2.93394988,2730.5,2730.4,0.2889521]
[1763805614736,0.59,2730.5,2730.4,0.8723521]
[1763805615123,0.59,2730.5,2730.4,1.3462521]
[1763805616399,0.002,2730.7,2730.4,1.3462521]
[1763805616400,0.59,2730.6,2730.4,1.3462521]
[1763805616734,0.59,2730.6,2730.5,0.7628521]
[1763805617036,0.59,2730.6,2730.5,1.2222521]
[1763805618107,0.59,2730.6,2730.5,0.7483521]
[1763805618312,0.59,2730.6,2730.5,1.3462521]
[1763805618623,0.59,2730.6,2730.5,0.8723521]
[1763805619310,0.59,2730.6,2730.5,0.4129521]
[1763805619311,1.4457,2730.6,2730.5,0.4129521]
[1763805619825,1.96773958,2730.6,2730.5,0.2889521]
[1763805620025,1.96773958,2730.6,2730.5,0.4129521]
[1763805620844,0.9545,2730.6,2730.5,0.4129521]
[1763805621340,1.4457,2730.6,2730.5,0.4129521]
[1763805622720,0.59,2730.6,2730.5,1.3462521]
[1763805624648,0.59,2730.6,2730.5,1.0573]
[1763805628825,0.59,2730.6,2730.5,0.9333]
[1763805629156,0.59,2730.6,2730.5,1.0573]
[1763805630863,0.59,2730.6,2730.4,0.001]
[1763805631079,0.3645,2730.5,2730.4,0.001]
[1763805631355,0.3645,2730.5,2730.4,0.125]
[1763805631733,0.3645,2730.5,2730.4,0.42417911]
[1763805632128,0.3645,2730.5,2730.4,0.30017911]
[1763805632457,1.4457,2730.5,2730.4,0.42417911]
[1763805632638,0.61065213,2730.7,2730.4,0.42417911]
[1763805632973,7.7160198,2732.2,2730.5,0.29917911]
[1763805632974,0.88454222,2731.0,2730.5,0.29917911]
[1763805633146,0.88454222,2731.0,2730.6,0.29917911]
[1763805633358,0.407504,2731.5,2730.7,0.29917911]
[1763805633645,0.4739,2731.2,2730.8,0.42317911]
[1763805633864,0.90699264,2732.0,2730.9,0.29917911]
[1763805634028,0.407504,2731.3,2731.0,0.29917911]
[1763805634230,0.90699264,2731.0,2730.8,0.124]
[1763805634429,0.90699264,2731.0,2730.9,0.34310286]
[1763805634829,3.76561132,2731.0,2730.9,0.34310286]
[1763805635641,1.93020044,2731.0,2730.9,0.34310286]
[1763805635843,3.76561132,2731.0,2730.8,0.124]
[1763805636963,1.19605934,2731.0,2730.8,0.124]
[1763805637725,1.31048005,2732.1,2730.8,0.124]
[1763805637726,3.76561132,2730.9,2730.8,0.124]
[1763805638949,0.60860564,2730.9,2730.8,0.124]
[1763805640578,3.76561132,2731.2,2730.8,0.5831]
[1763805640945,3.76561132,2731.2,2730.8,1.0491]
[1763805642076,3.76561132,2731.2,2730.8,0.5831]
[1763805642255,3.76561132,2730.9,2730.8,0.124]
[1763805644780,3.76561132,2730.9,2730.8,0.5831]
[1763805645165,3.76561132,2731.1,2730.8,1.0491]
[1763805645357,4.67260396,2731.1,2731.0,0.4591]
[1763805645767,4.67260396,2731.1,2730.8,0.124]
[1763805645768,0.90699264,2731.1,2730.8,0.124]
[1763805646464,0.90699264,2731.1,2730.5,0.467]
[1763805646652,0.90699264,2731.1,2730.5,0.001]
[1763805646859,4.67260396,2731.1,2730.6,0.59]
[1763805647190,4.67260396,2731.1,2730.7,0.466]
[1763805647395,0.90699264,2731.1,2730.7,0.466]
[1763805648009,0.90699264,2731.1,2731.0,0.4591]
[1763805648508,0.57471589,2731.9,2731.0,0.9251]
[1763805648816,0.11002413,2732.2,2731.0,0.9251]
[1763805648817,0.11002413,2732.2,2731.8,0.4591]
[1763805649021,3.76561132,2732.1,2731.3,0.1906]
[1763805649221,3.76561132,2732.1,2731.4,0.124]
[1763805649569,3.76561132,2732.1,2731.4,0.59]
[1763805650208,3.76561132,2732.1,2731.4,0.124]
[1763805650374,0.38756355,2732.0,2731.5,0.124]
[1763805650574,1.29455619,2732.0,2731.5,0.124]
[1763805650810,0.38756355,2732.0,2731.5,0.124]
[1763805650990,0.11002413,2732.2,2731.5,0.124]
[1763805651303,0.11002413,2732.2,2731.3,0.6566]
[1763805651304,0.11002413,2732.2,2731.6,0.124]
[1763805651844,0.002,2731.7,2731.3,0.1906]
[1763805652108,0.002,2731.7,2731.4,0.124]
[1763805652677,0.002,2731.7,2731.6,0.4591]
[1763805653097,0.002,2731.7,2731.6,0.9251]
[1763805653580,0.002,2731.7,2731.6,0.4591]
[1763805654807,0.002,2731.7,2731.6,0.9251]
[1763805656698,12.442978,2733.1,2731.6,0.4591]
[1763805656907,0.90699264,2732.8,2731.7,0.124]
[1763805657222,2.7881,2732.5,2731.7,0.59]
[1763805657593,2.7881,2732.5,2731.7,0.466]
[1763805657837,2.7881,2732.5,2731.8,0.124]
[1763805658042,2.7881,2732.5,2731.9,0.124]
[1763805658194,0.36950926,2732.4,2731.9,0.124]
[1763805658521,10.265935,2732.5,2731.9,0.124]
[1763805659019,7.887846,2732.3,2731.3,0.6566]
[1763805659229,7.887846,2732.3,2731.4,0.124]
[1763805659526,5.211446,2732.3,2731.4,0.59]
[1763805659924,5.211446,2732.3,2731.5,0.124]
[1763805660228,0.61184386,2732.2,2731.5,0.59]
[1763805660427,0.90699264,2732.4,2731.5,0.59]
[1763805660625,3.626886,2732.3,2731.5,0.59]
[1763805661215,0.405504,2732.6,2731.5,0.59]
[1763805661428,4.442129,2732.3,2731.5,0.59]
[1763805661731,2.869709,2732.3,2731.5,0.59]
[1763805662026,0.37767016,2732.2,2731.5,0.59]
[1763805662229,0.90699264,2732.4,2731.5,0.59]
[1763805662522,4.683599,2732.3,2731.5,0.59]
[1763805662690,3.08691064,2732.1,2731.1,0.21627871]
[1763805662889,0.3397407,2732.0,2731.2,0.124]
[1763805663088,0.3397407,2731.9,2731.2,0.124]
[1763805663293,0.3397407,2731.8,2731.2,0.124]
[1763805663536,0.3397407,2731.7,2731.2,0.124]
[1763805663744,0.3397407,2731.6,2731.2,0.124]
[1763805664036,0.3397407,2731.5,2731.3,0.124]
[1763805664243,0.3397407,2731.4,2731.3,0.124]
[1763805664606,0.3397407,2731.4,2730.4,3.70300745]
[1763805664823,0.3397407,2731.3,2730.6,0.90699264]
[1763805665010,0.3397407,2731.2,2730.6,0.90699264]
[1763805665211,0.3397407,2731.1,2730.7,0.99727234]
[1763805665412,0.3397407,2731.0,2730.7,0.99727234]
[1763805665611,0.3397407,2730.9,2730.8,0.4931]
[1763805666012,0.3397407,2730.9,2730.8,0.3234365]
[1763805666201,0.3397407,2730.9,2730.8,0.1303]
[1763805668024,0.3397407,2730.9,2730.8,0.2606]
[1763805668930,0.3397407,2730.9,2730.5,1.91486817]
[1763805669104,0.3397407,2730.8,2730.5,1.91486817]
[1763805669299,0.3397407,2730.7,2730.6,0.405504]
[1763805669527,0.3397407,2730.7,2730.6,1.01864122]
[1763805669723,0.002,2730.9,2730.6,5.71384578]
[1763805670131,0.002,2730.9,2730.6,6.18644578]
[1763805672038,0.002,2730.9,2730.6,4.3518583]
[1763805672742,0.002,2730.9,2730.6,2.59057706]
[1763805672942,0.002,2730.9,2730.7,0.45064452]
[1763805673845,0.002,2730.9,2730.7,1.35763716]
[1763805674038,0.002,2730.9,2730.8,0.405504]
[1763805674368,0.002,2730.9,2730.8,0.4421233]
[1763805674712,0.002,2730.9,2730.7,1.35763716]
[1763805674713,0.002,2730.9,2730.7,0.45064452]
[1763805674914,0.002,2730.9,2730.5,6.65652627]
[1763805675130,0.002,2730.9,2730.6,0.78965263]
[1763805676315,0.002,2730.9,2730.7,3.51182564]
[1763805677056,0.002,2730.9,2730.8,0.0366193]
[1763805677361,0.002,2730.9,2730.8,0.124]
[1763805678056,0.002,2730.9,2730.8,5.22402942]
[1763805678255,0.002,2730.9,2730.8,6.81435159]
[1763805679124,0.002,2730.9,2730.8,10.47628215]
[1763805680734,0.002,2730.9,2730.8,10.07077815]
[1763805680931,0.002,2730.9,2730.8,4.81852542]
[1763805681136,0.002,2730.9,2730.8,4.85514472]
[1763805681362,0.002,2730.9,2730.8,9.43537274]
[1763805681653,0.339239,2730.9,2730.8,9.39875344]
[1763805681880,3.9e-05,2730.9,2730.8,9.39875344]
[1763805682060,0.002,2731.2,2730.8,5.73682288]
[1763805682223,0.002,2731.2,2730.8,9.39871184]
[1763805682422,0.002,2731.2,2730.9,0.93987118]
[1763805682626,0.002,2731.2,2730.9,0.0593731]
[1763805682942,0.002,2731.2,2731.0,0.405504]
[1763805683148,0.002,2731.2,2731.0,0.593704]
[1763805684066,0.002,2731.2,2731.0,1.03649784]
[1763805684364,0.002,2731.2,2731.1,0.1882]
[1763805684541,0.002,2731.2,2731.1,0.22481528]
[1763805684735,0.002,2731.5,2731.1,3.8863436]
[1763805684936,0.002,2731.5,2731.4,4.69452542]
[1763805685152,0.002,2731.5,2731.4,5.21298922]
[1763805685535,0.002,2731.5,2731.4,5.17637796]
[1763805685773,0.002,2731.5,2731.4,5.30037796]
[1763805686001,0.002,2731.5,2731.4,6.6128746]
[1763805686403,0.002,2731.5,2731.4,1.91834918]
[1763805686608,0.002,2731.5,2731.4,1.43649664]
[1763805687102,0.002,2731.5,2731.4,0.124]
[1763805689791,0.002,2731.5,2731.1,1.31249664]
[1763805689994,0.002,2731.5,2731.4,4.69452542]
[1763805690194,0.002,2731.5,2731.4,0.90699264]
[1763805690396,0.002,2731.5,2731.4,1.03099264]
[1763805690797,0.5005,2731.5,2731.2,2.21532445]
[1763805691102,0.5005,2731.5,2731.4,0.124]
[1763805691103,0.002,2731.5,2731.4,0.124]
[1763805691305,0.002,2731.5,2731.4,0.23393245]
[1763805691306,0.5005,2731.5,2731.4,0.23393245]
[1763805691481,0.5005,2731.5,2731.4,0.35793245]
[1763805691683,0.002,2731.5,2731.4,0.35793245]
[1763805692210,0.002,2731.5,2731.4,0.23393245]
[1763805692371,0.002,2731.5,2731.4,0.35793245]
[1763805692574,0.5005,2731.5,2731.4,0.23393245]
[1763805692795,0.9731,2731.5,2731.4,0.124]
[1763805693174,0.9731,2731.5,2730.8,0.001]
[1763805693375,0.6867,2730.9,2730.8,0.001]
[1763805693587,0.6867,2730.9,2730.8,0.125]
[1763805693788,1.1593,2730.9,2730.8,0.125]
[1763805694211,0.002,2731.5,2730.8,0.125]
[1763805694212,0.4726,2731.2,2730.8,0.125]
[1763805694708,0.4726,2731.4,2730.8,0.125]
[1763805695076,0.57458589,2731.3,2730.8,0.125]
[1763805695717,1.03168589,2731.3,2730.8,0.125]
[1763805695918,0.57458589,2731.3,2730.8,0.125]
[1763805696798,1.03168589,2731.3,2730.8,0.125]
[1763805697239,0.57458589,2731.3,2730.8,0.125]
[1763805697535,0.002,2731.5,2730.8,4.81952542]
[1763805697723,0.002,2731.5,2730.9,0.48195254]
[1763805698206,0.002,2731.5,2731.0,0.31627001]
[1763805698393,0.002,2731.5,2731.1,0.31627001]
[1763805698596,0.002,2731.5,2730.9,0.48195254]
[1763805698597,0.002,2731.5,2731.2,0.44027001]
[1763805698840,0.002,2731.5,2731.3,0.31627001]
[1763805699134,0.002,2731.5,2731.4,0.31627001]
[1763805700428,0.002,2731.5,2731.4,0.83341095]
[1763805703198,0.002,2731.8,2731.4,0.83341095]
[1763805703435,0.002,2731.8,2731.5,0.35287993]
[1763805703650,0.002,2731.8,2731.6,0.44027001]
[1763805703941,0.002,2731.8,2731.7,0.31627001]
[1763805704099,0.002,2732.1,2731.7,2.17885343]
[1763805704301,0.002,2732.1,2731.8,0.31627001]
[1763805704615,0.002,2732.1,2731.9,0.31627001]
[1763805704817,0.002,2732.1,2732.0,0.44027001]
[1763805710053,0.4922,2732.1,2732.0,0.44027001]
[1763805710255,0.9493,2732.1,2732.0,0.44027001]
[1763805710551,0.4922,2732.1,2732.0,0.31627001]
[1763805710750,0.9493,2732.1,2732.0,0.44027001]
[1763805711318,0.9493,2732.1,2732.0,0.31627001]
[1763805711914,0.9493,2732.1,2732.0,0.44027001]
[1763805718354,0.9493,2732.1,2732.0,0.46648155]
[1763805720768,0.002,2732.1,2732.0,0.46648155]
[1763805722774,0.002,2732.1,2732.0,0.124]
[1763805723744,0.002,2732.1,2732.0,0.16060322]
[1763805724753,0.002,2732.1,2732.0,4.85512864]
[1763805724974,0.002,2732.1,2732.0,5.3407415]
[1763805726341,0.002,2732.1,2732.0,10.51823814]
[1763805726579,0.002,2732.1,2732.0,6.61663492]
[1763805726876,0.002,2732.1,2732.0,6.65323814]
[1763805727393,0.002,2732.1,2732.0,6.08713092]
[1763805727685,0.002,2732.1,2732.0,5.30413828]
[1763805727886,0.002,2732.1,2732.0,5.18013828]
[1763805728092,0.002,2732.1,2732.0,5.30413828]
[1763805730081,0.002,2732.1,2732.0,5.3407415]
[1763805730250,0.002,2732.1,2732.0,5.30413828]
[1763805730442,0.002,2732.1,2732.0,5.3407415]
[1763805730646,0.002,2732.1,2732.0,6.24773414]
[1763805730874,0.002,2732.1,2732.0,5.31028037]
[1763805731077,0.002,2732.1,2732.0,5.82584177]
[1763805732244,0.002,2732.7,2732.1,1.31249664]
[1763805732461,0.002,2732.7,2732.6,4.66406429]
[1763805732679,0.002,2732.7,2732.6,4.78806429]
[1763805733070,0.002,2732.7,2732.6,5.30255947]
[1763805733276,0.002,2732.7,2732.6,5.70806347]
[1763805733992,0.002,2732.7,2732.6,5.67146829]
[1763805734207,0.002,2732.7,2732.6,5.70911112]
[1763805734347,0.002,2732.7,2732.6,5.83311112]
[1763805734775,0.002,2732.7,2732.6,2.07603947]
[1763805734982,0.4561,2732.7,2732.6,1.38489264]
[1763805735164,0.4561,2732.7,2732.6,1.03099264]
[1763805735573,0.002,2732.7,2732.6,1.03099264]
[1763805736683,0.4561,2732.7,2732.6,1.03099264]
[1763805736986,0.934,2732.7,2732.6,0.124]
[1763805739571,0.002,2732.7,2732.6,0.124]
[1763805743288,0.002,2732.7,2732.6,0.16059518]
[1763805743697,0.002,2732.7,2732.6,0.64049518]
[1763805743904,0.002,2732.7,2732.6,1.16121974]
[1763805744564,0.002,2732.7,2732.6,0.64049518]
[1763805745385,0.002,2732.7,2732.6,1.95299182]
[1763805745757,0.002,2732.7,2732.6,1.91639664]
[1763805746195,0.002,2732.7,2732.6,1.95299182]
[1763805746393,0.002,2732.7,2732.6,5.61251022]
[1763805746595,0.002,2732.7,2732.6,2.88021914]
[1763805746795,0.002,2732.7,2732.6,1.95299182]
[1763805746999,0.002,2732.7,2732.6,1.91639664]
[1763805747299,0.002,2733.3,2732.7,0.405504]
[1763805747499,0.002,2733.3,2732.8,3.14470063]
[1763805747999,0.002,2733.3,2732.9,0.03659116]
[1763805748209,0.002,2733.3,2733.0,0.46171918]
[1763805748561,0.4541,2733.1,2733.0,0.46171918]
[1763805749616,0.932,2733.1,2733.0,0.46171918]
[1763805750000,0.002,2733.3,2733.0,0.46171918]
[1763805753143,0.002,2733.3,2733.1,0.03658848]
[1763805753432,0.002,2733.3,2733.1,3.18128911]
[1763805753636,0.002,2733.3,2733.2,0.36430083]
[1763805754332,0.002,2733.3,2733.2,1.27129347]
[1763805754844,0.002,2733.3,2733.2,5.02582679]
[1763805755290,0.002,2733.3,2733.2,5.06241394]
[1763805757941,0.9985,2733.3,2733.2,0.124]
[1763805758424,0.5009,2733.3,2733.2,0.124]
[1763805759045,0.9985,2733.3,2732.8,3.14470063]
[1763805759346,0.4976,2733.2,2732.9,0.124]
[1763805759643,0.4989,2733.0,2732.9,0.124]
[1763805759846,0.4989,2733.0,2732.9,0.50827528]
[1763805760044,0.002,2733.3,2732.9,1.41526792]
[1763805760246,0.002,2733.3,2732.9,6.37662935]
[1763805760997,0.002,2733.3,2732.9,6.25262935]
[1763805761241,0.002,2733.3,2733.0,0.124]
[1763805761447,0.002,2733.3,2733.1,0.63766294]
[1763805762103,0.002,2733.3,2733.1,0.67425142]
[1763805762303,0.002,2733.3,2733.1,3.81895205]
[1763805762907,0.002,2733.3,2733.1,3.78236357]
[1763805764230,0.4989,2733.2,2733.1,4.68935621]
[1763805764663,0.4989,2733.2,2733.1,4.81335621]
[1763805764815,0.002,2733.3,2733.1,4.81335621]
[1763805767643,0.9965,2733.2,2733.1,4.68935621]
[1763805767946,0.9965,2733.2,2733.1,4.81335621]
[1763805768133,0.002,2733.3,2733.1,1.66865558]
[1763805768328,0.002,2733.3,2733.1,1.03099264]
[1763805770648,0.002,2733.3,2733.2,0.4996]
[1763805771755,0.002,2733.3,2733.2,0.6236]
[1763805772747,0.002,2733.3,2733.2,4.68781905]
[1763805773352,0.002,2733.3,2733.2,5.59481169]
[1763805773647,0.002,2733.3,2733.2,6.99737649]
[1763805776513,0.002,2733.3,2733.2,10.86237649]
[1763805777150,0.002,2733.3,2733.2,14.00707712]
[1763805778550,0.002,2733.3,2733.2,10.34836207]
[1763805778846,0.002,2733.3,2733.2,6.35936207]
[1763805779152,0.002,2733.3,2733.2,5.08079727]
[1763805779328,0.002,2733.3,2733.2,5.11738442]
[1763805779523,0.002,2733.3,2733.2,5.08079727]
[1763805780056,0.002,2733.3,2733.2,8.77609947]
[1763805780350,0.002,2733.3,2733.2,8.73951232]
[1763805780555,0.002,2733.3,2733.2,10.36595889]
[1763805780860,0.002,2733.3,2733.2,14.11912227]
[1763805781952,0.002,2733.6,2733.3,1.31249664]
[1763805782247,0.002,2733.6,2733.5,5.06566002]
[1763805782449,0.002,2733.6,2733.5,5.18966002]
[1763805782654,0.002,2733.6,2733.5,6.40959609]
[1763805783166,0.9985,2733.6,2733.5,5.88009209]
[1763805783368,0.9985,2733.6,2733.5,6.00409209]
[1763805783570,0.9985,2733.6,2733.5,5.88009209]
[1763805783869,0.9985,2733.6,2733.5,6.00409209]
[1763805784352,0.5009,2733.6,2733.5,6.00409209]
[1763805784552,0.9985,2733.6,2733.5,6.00409209]
[1763805784746,0.5009,2733.6,2733.5,6.00409209]
[1763805785126,0.9985,2733.6,2733.5,5.88009209]
[1763805785316,0.9985,2733.6,2733.5,4.78415602]
[1763805785722,0.9985,2733.6,2733.4,3.34060063]
[1763805785723,0.9985,2733.6,2733.4,0.1959]
[1763805785979,0.9865,2733.5,2733.4,0.1959]
[1763805786440,0.9865,2733.5,2733.4,0.3199]
[1763805787154,0.9865,2733.5,2733.4,0.1959]
[1763805787387,0.9865,2733.5,2733.4,0.124]
[1763805788166,0.9865,2733.5,2733.0,0.001]
[1763805788369,0.4865,2733.1,2733.0,0.001]
[1763805788579,0.4865,2733.1,2733.0,0.125]
[1763805788778,0.9865,2733.1,2733.0,0.125]
[1763805791029,0.9865,2733.1,2733.0,0.001]
[1763805791197,0.9865,2733.1,2733.0,0.125]
[1763805793683,0.5,2733.3,2733.0,0.125]
[1763805793991,0.002,2733.6,2733.2,4.68645428]
[1763805794195,0.502,2733.6,2733.2,7.83115491]
[1763805794784,0.502,2733.6,2733.3,0.90699264]
[1763805795099,0.002,2733.6,2733.4,3.26870063]
[1763805795300,0.002,2733.6,2733.4,3.3052851]
[1763805795598,0.002,2733.6,2733.5,4.87842504]
[1763805795758,0.002,2733.9,2733.7,0.405504]
[1763805795960,0.002,2733.9,2733.8,5.21595828]
[1763805796506,0.002,2733.9,2733.8,6.12295092]
[1763805798700,0.002,2733.9,2733.8,6.62495092]
[1763805798906,0.002,2733.9,2733.8,7.65326207]
[1763805799270,0.002,2734.2,2734.0,0.405504]
[1763805801004,0.002,2734.5,2734.0,0.405504]
[1763805801207,0.002,2734.5,2734.4,5.99895092]
[1763805801421,0.002,2734.5,2734.4,6.12295092]
[1763805801586,0.002,2734.5,2734.4,6.73524601]
[1763805801784,0.002,2734.5,2734.4,10.39235543]
[1763805802606,0.002,2734.6,2734.5,0.90699264]
[1763805804174,0.4885,2734.6,2734.5,1.31249664]
[1763805804513,0.4885,2734.6,2734.5,1.43649664]
[1763805804709,0.4885,2734.6,2734.5,2.61202124]
[1763805806196,0.9885,2734.6,2734.5,2.61202124]
[1763805806430,0.4885,2734.6,2734.5,2.61202124]
[1763805807024,0.002,2734.6,2734.5,2.61202124]
[1763805807332,0.002,2734.6,2734.5,2.64859099]
[1763805807510,0.002,2734.6,2734.5,2.61202124]
[1763805808024,0.002,2734.6,2734.5,2.64859099]
[1763805808217,0.002,2734.8,2734.6,0.405504]
[1763805808423,0.002,2734.8,2734.7,0.7109135]
[1763805808828,0.002,2734.8,2734.7,0.74748058]
[1763805809938,0.002,2734.8,2734.7,0.7109135]
[1763805810735,0.002,2734.8,2734.7,0.8339135]
[1763805811307,0.002,2734.8,2734.7,0.98042693]
[1763805811545,0.002,2734.8,2734.7,1.88741957]
[1763805814632,0.002,2734.8,2734.7,5.58069488]
[1763805814832,0.002,2734.9,2734.7,5.58069488]
[1763805814833,0.002,2734.9,2734.8,5.99895092]
[1763805815134,0.002,2734.9,2734.8,7.02566584]
[1763805815330,0.002,2734.9,2734.8,7.06223158]
[1763805815513,0.002,2734.9,2734.8,7.02566584]
[1763805815712,0.002,2734.9,2734.8,7.06223158]
[1763805816348,0.002,2734.9,2734.8,7.02566584]
[1763805817445,0.6752,2734.9,2734.8,7.02566584]
[1763805817648,1.1453,2734.9,2734.8,5.71644692]
[1763805817851,1.1453,2734.9,2734.7,0.45192293]
[1763805817852,1.1453,2734.9,2734.7,0.14651343]
[1763805818145,0.9483,2734.8,2734.7,0.14651343]
[1763805818520,0.9483,2734.8,2734.7,0.123]
[1763805820834,0.9483,2734.8,2734.4,0.9493]
[1763805821161,0.197,2734.9,2734.4,0.001]
[1763805821162,0.4782,2734.5,2734.4,0.001]
[1763805821361,0.4782,2734.5,2734.4,0.124]
[1763805821574,0.9483,2734.5,2734.4,0.124]
[1763805827731,0.9483,2734.5,2734.4,4.81045428]
[1763805827732,0.4782,2734.5,2734.4,4.81045428]
[1763805827935,0.4782,2734.5,2734.4,5.29149971]
[1763805829555,0.9483,2734.5,2734.4,5.29149971]
[1763805829855,0.9483,2734.5,2734.4,0.124]
[1763805831075,0.9483,2734.5,2734.4,0.001]
[1763805831457,0.9483,2734.5,2734.4,0.124]
[1763805833072,0.9483,2734.5,2734.4,0.001]
[1763805833242,0.9483,2734.5,2734.4,0.124]
[1763805840192,0.9483,2734.5,2734.4,0.001]
[1763805840391,0.9483,2734.5,2734.4,0.124]
[1763805840755,0.9483,2734.5,2734.1,0.001]
[1763805840988,0.4782,2734.2,2734.1,0.001]
[1763805841160,0.4782,2734.2,2734.1,0.124]
[1763805841360,0.9483,2734.2,2734.1,0.124]
[1763805841789,0.9483,2734.2,2734.1,0.001]
[1763805841958,0.9483,2734.2,2734.1,0.124]
[1763805847013,0.9483,2734.2,2733.8,0.001]
[1763805847014,0.90699264,2734.1,2733.8,0.001]
[1763805847309,0.6467,2733.9,2733.8,0.001]
[1763805847511,1.052204,2733.9,2733.8,0.001]
[1763805847690,1.539404,2733.9,2733.8,0.001]
[1763805847885,1.31249664,2733.8,2733.0,0.001]
[1763805848197,0.4565,2733.1,2733.0,0.001]
[1763805848401,0.4565,2733.1,2733.0,0.124]
[1763805848703,0.9437,2733.1,2733.0,0.124]
[1763805848879,0.9437,2733.1,2733.0,0.001]
[1763805849292,0.9437,2733.1,2733.0,0.124]
[1763805851719,0.9437,2733.1,2733.0,0.001]
[1763805851888,0.9437,2733.1,2732.7,0.001]
[1763805851889,1.31249664,2733.0,2732.7,0.001]
[1763805852095,0.6467,2732.8,2732.7,0.001]
[1763805852295,0.6467,2732.8,2732.7,0.124]